[Event "XXII Rochefort Chess Masters"]
[Site "ROCHEFORT, France"]
[Date "2024.02.18"]
[Round "2.5"]
[White "Babaud, Antoine"]
[Black "Larkin, Vladyslav"]
[Result "1/2-1/2"]
[TimeControl "1h30/40 - 30' + [30'']"]
[WhiteElo "2148"]
[BlackElo "2460"]

1. d4 {[%clk 01:30:56]} {[%emt 00:00:02]} d6 {[%clk 01:18:22]} {[%emt
00:12:39]} 2. Nf3 {[%clk 01:29:53]} {[%emt 00:01:33]} Bg4 {[%clk 01:17:07]}
{[%emt 00:01:46]} 3. c4 {[%clk 01:27:49]} {[%emt 00:02:34]} g6 {[%clk
01:10:03]} {[%emt 00:07:35]} 4. Nc3 {[%clk 01:25:07]} {[%emt 00:03:10]} Bg7
{[%clk 01:10:26]} {[%emt 00:00:07]} 5. e3 {[%clk 01:22:35]} {[%emt 00:03:02]}
Nc6 {[%clk 00:45:00]} {[%emt 00:25:58]} 6. Be2 {[%clk 01:17:03]} {[%emt
00:06:01]} Nf6 {[%clk 00:29:28]} {[%emt 00:16:02]} 7. h3 {[%clk 01:10:32]}
{[%emt 00:07:01]} Bd7 {[%clk 00:29:28]} {[%emt 00:00:31]} 8. e4 {[%clk
01:03:09]} {[%emt 00:07:53]} e5 {[%clk 00:29:46]} {[%emt 00:00:12]} 9. Be3
{[%clk 01:02:57]} {[%emt 00:00:40]} exd4 {[%clk 00:30:00]} {[%emt 00:00:17]} 10.
Nxd4 {[%clk 01:03:01]} {[%emt 00:00:26]} O-O {[%clk 00:30:26]} {[%emt
00:00:05]} 11. Qd2 {[%clk 00:58:28]} {[%emt 00:05:02]} Re8 {[%clk 00:28:40]}
{[%emt 00:02:16]} 12. Nxc6 {[%clk 00:57:19]} {[%emt 00:01:39]} bxc6 {[%clk
00:19:03]} {[%emt 00:10:07]} 13. Bd3 {[%clk 00:47:30]} {[%emt 00:10:18]} c5
{[%clk 00:18:50]} {[%emt 00:00:44]} 14. O-O {[%clk 00:46:51]} {[%emt 00:01:09]}
Bc6 {[%clk 00:18:45]} {[%emt 00:00:35]} 15. Qc2 {[%clk 00:40:12]} {[%emt
00:07:08]} Rb8 {[%clk 00:19:00]} {[%emt 00:00:16]} 16. Rae1 {[%clk 00:34:28]}
{[%emt 00:06:14]} Qe7 {[%clk 00:07:45]} {[%emt 00:11:45]} 17. Bd2 {[%clk
00:29:25]} {[%emt 00:05:33]} h5 {[%clk 00:00:43]} {[%emt 00:07:32]} 18. b3
{[%clk 00:26:21]} {[%emt 00:03:33]} h4 {[%clk 00:00:36]} {[%emt 00:00:37]} 19.
Nd5 {[%clk 00:24:52]} {[%emt 00:01:59]} Qd7 {[%clk 00:00:35]} {[%emt 00:00:32]}
20. Bg5 {[%clk 00:23:41]} {[%emt 00:01:40]} Bxd5 {[%clk 00:00:51]} {[%emt
00:00:15]} 21. exd5 {[%clk 00:23:31]} {[%emt 00:00:40]} Nh5 {[%clk 00:01:17]}
{[%emt 00:00:04]} 22. Bxh4 {[%clk 00:21:54]} {[%emt 00:02:07]} Bd4 {[%clk
00:00:46]} {[%emt 00:01:01]} 23. Kh2 {[%clk 00:19:42]} {[%emt 00:02:41]} Be5+
{[%clk 00:00:47]} {[%emt 00:00:30]} 24. Kg1 {[%clk 00:14:23]} {[%emt 00:05:48]}
Bd4 {[%clk 00:00:49]} {[%emt 00:00:28]} 25. Be2 {[%clk 00:14:08]} {[%emt
00:00:46]} Ng7 {[%clk 00:00:35]} {[%emt 00:00:44]} 26. Bg4 {[%clk 00:13:48]}
{[%emt 00:00:49]} f5 {[%clk 00:01:02]} {[%emt 00:00:04]} 27. Bf3 {[%clk
00:14:03]} {[%emt 00:00:15]} Kf7 {[%clk 00:01:01]} {[%emt 00:00:31]} 28. Bg5
{[%clk 00:13:54]} {[%emt 00:00:38]} Re5 {[%clk 00:00:34]} {[%emt 00:00:58]} 29.
Bf4 {[%clk 00:13:52]} {[%emt 00:00:32]} Re7 {[%clk 00:00:56]} {[%emt 00:00:08]}
30. Rxe7+ {[%clk 00:11:53]} {[%emt 00:02:29]} Qxe7 {[%clk 00:01:23]} {[%emt
00:00:03]} 31. Bd2 {[%clk 00:12:14]} {[%emt 00:00:08]} Qh4 {[%clk 00:01:31]}
{[%emt 00:00:22]} 32. Bc3 {[%clk 00:11:54]} {[%emt 00:00:50]} Re8 {[%clk
00:01:25]} {[%emt 00:00:37]} 33. Rd1 {[%clk 00:11:46]} {[%emt 00:00:37]} Bf6
{[%clk 00:00:33]} {[%emt 00:01:23]} 34. Qd2 {[%clk 00:10:04]} {[%emt 00:02:12]}
Re7 {[%clk 00:00:35]} {[%emt 00:00:28]} 35. Bxf6 {[%clk 00:10:06]} {[%emt
00:00:27]} Qxf6 {[%clk 00:01:02]} {[%emt 00:00:03]} 36. Re1 {[%clk 00:09:09]}
{[%emt 00:01:27]} Ne8 {[%clk 00:00:36]} {[%emt 00:00:56]} 37. Rxe7+ {[%clk
00:09:01]} {[%emt 00:00:38]} Kxe7 {[%clk 00:00:44]} {[%emt 00:00:23]} 38. Qa5
{[%clk 00:09:08]} {[%emt 00:00:23]} Qa1+ {[%clk 00:00:39]} {[%emt 00:00:35]} 39.
Kh2 {[%clk 00:09:33]} {[%emt 00:00:04]} Qb2 {[%clk 00:01:03]} {[%emt 00:00:06]}
40. Qxa7 {[%clk 00:05:36]} {[%emt 00:04:27]} Qxf2 {[%clk 00:01:15]} {[%emt
00:00:18]} 41. Qa5 {[%clk 00:05:57]} {[%emt 00:00:09]} Qe3 {[%clk 00:27:56]}
{[%emt 00:03:49]} 42. Kh1 {[%clk 00:25:06]} {[%emt 00:11:20]} 1/2-1/2

[Event "XXII Rochefort Chess Masters"]
[Site "ROCHEFORT, France"]
[Date "2024.02.18"]
[Round "2.4"]
[White "Marie, Maxime"]
[Black "Roshka, Yevgeniy"]
[Result "1-0"]
[TimeControl "1h30/40 - 30' + [30'']"]
[WhiteElo "2193"]
[BlackElo "2474"]

1. c4 {[%clk 01:30:15]} {[%emt 00:00:44]} e6 {[%clk 01:19:30]} {[%emt
00:11:24]} 2. Nf3 {[%clk 01:30:08]} {[%emt 00:00:44]} d5 {[%clk 01:19:53]}
{[%emt 00:00:06]} 3. e3 {[%clk 01:30:22]} {[%emt 00:00:16]} Nf6 {[%clk
01:20:08]} {[%emt 00:00:15]} 4. b3 {[%clk 01:29:48]} {[%emt 00:01:03]} c5
{[%clk 01:19:14]} {[%emt 00:01:24]} 5. Bb2 {[%clk 01:26:34]} {[%emt 00:03:44]}
Nc6 {[%clk 01:19:38]} {[%emt 00:00:06]} 6. cxd5 {[%clk 01:24:26]} {[%emt
00:02:38]} exd5 {[%clk 01:20:03]} {[%emt 00:00:05]} 7. d4 {[%clk 01:18:39]}
{[%emt 00:06:16]} cxd4 {[%clk 01:05:32]} {[%emt 00:15:01]} 8. Nxd4 {[%clk
01:18:44]} {[%emt 00:00:25]} Bb4+ {[%clk 01:05:14]} {[%emt 00:00:48]} 9. Bc3
{[%clk 01:18:35]} {[%emt 00:00:39]} Bd6 {[%clk 01:04:42]} {[%emt 00:01:02]} 10.
Nd2 {[%clk 01:14:05]} {[%emt 00:05:00]} O-O {[%clk 01:04:36]} {[%emt 00:00:36]}
11. Be2 {[%clk 01:11:20]} {[%emt 00:03:15]} Re8 {[%clk 01:04:24]} {[%emt
00:00:42]} 12. O-O {[%clk 01:07:14]} {[%emt 00:04:36]} Bd7 {[%clk 01:03:28]}
{[%emt 00:01:27]} 13. N2f3 {[%clk 00:47:42]} {[%emt 00:20:02]} Rc8 {[%clk
00:42:25]} {[%emt 00:21:33]} 14. Nb5 {[%clk 00:32:38]} {[%emt 00:15:34]} Bb8
{[%clk 00:42:13]} {[%emt 00:00:42]} 15. Bb2 {[%clk 00:27:24]} {[%emt 00:05:45]}
a6 {[%clk 00:41:12]} {[%emt 00:01:32]} 16. Nc3 {[%clk 00:26:30]} {[%emt
00:01:23]} Bg4 {[%clk 00:41:24]} {[%emt 00:00:18]} 17. Rc1 {[%clk 00:20:49]}
{[%emt 00:06:12]} Qd6 {[%clk 00:39:35]} {[%emt 00:02:18]} 18. g3 {[%clk
00:20:28]} {[%emt 00:00:51]} Ba7 {[%clk 00:38:39]} {[%emt 00:01:27]} 19. Nd4
{[%clk 00:15:21]} {[%emt 00:05:37]} Bh3 {[%clk 00:38:01]} {[%emt 00:01:08]} 20.
Re1 {[%clk 00:15:39]} {[%emt 00:00:12]} Nxd4 {[%clk 00:35:31]} {[%emt
00:03:00]} 21. exd4 {[%clk 00:15:59]} {[%emt 00:00:10]} Qb4 {[%clk 00:35:44]}
{[%emt 00:00:17]} 22. Bf1 {[%clk 00:10:18]} {[%emt 00:06:10]} Bg4 {[%clk
00:35:03]} {[%emt 00:01:10]} 23. Nxd5 {[%clk 00:10:02]} {[%emt 00:00:47]} Bxd1
{[%clk 00:32:32]} {[%emt 00:03:01]} 24. Rxe8+ {[%clk 00:06:44]} {[%emt
00:03:48]} Nxe8 {[%clk 00:32:51]} {[%emt 00:00:11]} 25. Rxc8 {[%clk 00:05:59]}
{[%emt 00:01:14]} Qe1 {[%clk 00:32:43]} {[%emt 00:00:38]} 26. Nc7 {[%clk
00:06:02]} {[%emt 00:00:27]} Kf8 {[%clk 00:30:50]} {[%emt 00:02:23]} 27. Ba3+
{[%clk 00:06:13]} {[%emt 00:00:19]} Kg8 {[%clk 00:31:19]} {[%emt 00:00:01]} 28.
Rxe8+ {[%clk 00:06:06]} {[%emt 00:00:38]} Qxe8 {[%clk 00:31:44]} {[%emt
00:00:05]} 29. Nxe8 {[%clk 00:06:32]} {[%emt 00:00:04]} Bxd4 {[%clk 00:32:11]}
{[%emt 00:00:03]} 30. Nd6 {[%clk 00:05:08]} {[%emt 00:01:54]} b5 {[%clk
00:32:40]} {[%emt 00:00:01]} 31. Bg2 {[%clk 00:04:26]} {[%emt 00:01:12]} Bc2
{[%clk 00:32:25]} {[%emt 00:00:45]} 32. Be4 {[%clk 00:03:50]} {[%emt 00:01:05]}
Bd1 {[%clk 00:32:35]} {[%emt 00:00:20]} 33. Bb7 {[%clk 00:03:29]} {[%emt
00:00:51]} Bc3 {[%clk 00:33:03]} {[%emt 00:00:02]} 34. Bxa6 {[%clk 00:03:06]}
{[%emt 00:00:54]} b4 {[%clk 00:33:32]} {[%emt 00:00:01]} 35. Ne4 {[%clk
00:02:45]} {[%emt 00:00:50]} Be1 {[%clk 00:34:01]} {[%emt 00:00:02]} 36. Kf1
{[%clk 00:03:04]} {[%emt 00:00:11]} bxa3 {[%clk 00:34:29]} {[%emt 00:00:02]} 37.
Kxe1 {[%clk 00:03:27]} {[%emt 00:00:06]} Bxb3 {[%clk 00:34:55]} {[%emt
00:00:04]} 38. Nc3 {[%clk 00:03:36]} {[%emt 00:00:20]} Be6 {[%clk 00:35:18]}
{[%emt 00:00:08]} 39. Bd3 {[%clk 00:03:48]} {[%emt 00:00:18]} g5 {[%clk
00:35:34]} {[%emt 00:00:14]} 40. Bc2 {[%clk 00:04:00]} {[%emt 00:00:18]} Kg7
{[%clk 00:35:49]} {[%emt 00:00:15]} 41. Kd2 {[%clk 00:04:20]} {[%emt 00:00:09]}
Kf6 {[%clk 00:36:13]} {[%emt 00:00:06]} 42. Bxh7 {[%clk 00:03:54]} {[%emt
00:00:56]} Ke5 {[%clk 00:36:39]} {[%emt 00:00:04]} 43. Bb1 {[%clk 00:04:12]}
{[%emt 00:00:13]} Bc4 {[%clk 00:36:58]} {[%emt 00:00:10]} 44. Ke3 {[%clk
00:01:49]} {[%emt 00:02:53]} g4 {[%clk 00:37:26]} {[%emt 00:00:02]} 45. Bd3
{[%clk 00:01:01]} {[%emt 00:01:18]} Be6 {[%clk 00:37:53]} {[%emt 00:00:03]} 46.
Nb5 {[%clk 00:00:50]} {[%emt 00:00:40]} Bxa2 {[%clk 00:38:22]} {[%emt
00:00:02]} 47. Nxa3 {[%clk 00:01:15]} {[%emt 00:00:05]} Be6 {[%clk 00:38:38]}
{[%emt 00:00:13]} 48. Bc4 {[%clk 00:01:38]} {[%emt 00:00:07]} 1-0

[Event "XXII Rochefort Chess Masters"]
[Site "ROCHEFORT, France"]
[Date "2024.02.18"]
[Round "2.3"]
[White "Sivuk, Vitaly"]
[Black "Bosc, Seraphina"]
[Result "1-0"]
[TimeControl "1h30/40 - 30' + [30'']"]
[WhiteElo "2520"]
[BlackElo "2200"]

1. d4 {[%clk 01:17:32]} {[%emt 00:13:27]} e6 {[%clk 01:30:19]} {[%emt
00:00:41]} 2. c4 {[%clk 01:17:51]} {[%emt 00:00:11]} d5 {[%clk 01:30:35]}
{[%emt 00:00:15]} 3. Nc3 {[%clk 01:18:09]} {[%emt 00:00:11]} Nf6 {[%clk
01:30:55]} {[%emt 00:00:11]} 4. cxd5 {[%clk 01:18:29]} {[%emt 00:00:10]} exd5
{[%clk 01:31:18]} {[%emt 00:00:07]} 5. Bg5 {[%clk 01:18:52]} {[%emt 00:00:06]}
c6 {[%clk 01:31:22]} {[%emt 00:00:27]} 6. e3 {[%clk 01:19:13]} {[%emt
00:00:08]} Be7 {[%clk 01:31:19]} {[%emt 00:00:34]} 7. Bd3 {[%clk 01:19:33]}
{[%emt 00:00:10]} O-O {[%clk 01:31:00]} {[%emt 00:00:49]} 8. Qc2 {[%clk
01:19:54]} {[%emt 00:00:09]} h6 {[%clk 01:30:53]} {[%emt 00:00:38]} 9. Bf4
{[%clk 01:19:26]} {[%emt 00:00:56]} Bd6 {[%clk 01:25:25]} {[%emt 00:05:58]} 10.
Bxd6 {[%clk 01:19:25]} {[%emt 00:00:31]} Qxd6 {[%clk 01:25:50]} {[%emt
00:00:06]} 11. Nf3 {[%clk 01:19:19]} {[%emt 00:00:35]} Nbd7 {[%clk 01:24:55]}
{[%emt 00:01:26]} 12. O-O {[%clk 01:19:30]} {[%emt 00:00:18]} Re8 {[%clk
01:24:41]} {[%emt 00:00:45]} 13. Rab1 {[%clk 01:18:17]} {[%emt 00:01:42]} a5
{[%clk 01:22:50]} {[%emt 00:02:21]} 14. a3 {[%clk 01:18:32]} {[%emt 00:00:15]}
Qe7 {[%clk 01:16:56]} {[%emt 00:06:24]} 15. Nd2 {[%clk 01:14:14]} {[%emt
00:04:47]} Qd6 {[%clk 01:01:30]} {[%emt 00:15:57]} 16. Rfc1 {[%clk 01:12:37]}
{[%emt 00:02:07]} h5 {[%clk 00:57:34]} {[%emt 00:04:27]} 17. h3 {[%clk
01:12:16]} {[%emt 00:00:50]} g5 {[%clk 00:54:24]} {[%emt 00:03:40]} 18. e4
{[%clk 01:08:08]} {[%emt 00:04:38]} dxe4 {[%clk 00:51:06]} {[%emt 00:03:49]} 19.
Ncxe4 {[%clk 01:07:43]} {[%emt 00:00:54]} Qxd4 {[%clk 00:43:04]} {[%emt
00:08:33]} 20. Nf3 {[%clk 01:07:06]} {[%emt 00:01:05]} Qd5 {[%clk 00:37:52]}
{[%emt 00:05:44]} 21. Nfxg5 {[%clk 01:01:54]} {[%emt 00:05:42]} Nxe4 {[%clk
00:36:27]} {[%emt 00:01:55]} 22. Nxe4 {[%clk 01:02:18]} {[%emt 00:00:04]} Kg7
{[%clk 00:35:15]} {[%emt 00:01:43]} 23. Qc3+ {[%clk 00:52:49]} {[%emt
00:09:58]} Qe5 {[%clk 00:24:18]} {[%emt 00:11:29]} 24. Nd6 {[%clk 00:50:51]}
{[%emt 00:02:27]} Re6 {[%clk 00:23:13]} {[%emt 00:01:35]} 25. Nf5+ {[%clk
00:50:06]} {[%emt 00:01:13]} Kf8 {[%clk 00:23:05]} {[%emt 00:00:37]} 26. Qc2
{[%clk 00:50:03]} {[%emt 00:00:34]} Nf6 {[%clk 00:20:24]} {[%emt 00:03:12]} 27.
f4 {[%clk 00:37:26]} {[%emt 00:13:07]} Qxf4 {[%clk 00:10:56]} {[%emt 00:09:59]}
28. Qc5+ {[%clk 00:37:38]} {[%emt 00:00:16]} Kg8 {[%clk 00:10:58]} {[%emt
00:00:28]} 29. Rf1 {[%clk 00:38:02]} {[%emt 00:00:06]} Qe5 {[%clk 00:10:04]}
{[%emt 00:01:24]} 30. Qf2 {[%clk 00:38:24]} {[%emt 00:00:08]} Nh7 {[%clk
00:01:44]} {[%emt 00:08:51]} 31. Nd4 {[%clk 00:32:25]} {[%emt 00:06:29]} Re7
{[%clk 00:00:48]} {[%emt 00:01:26]} 32. Rbe1 {[%clk 00:32:11]} {[%emt
00:00:43]} Qc7 {[%clk 00:00:57]} {[%emt 00:00:22]} 33. Bxh7+ {[%clk 00:28:48]}
{[%emt 00:03:52]} Kxh7 {[%clk 00:01:21]} {[%emt 00:00:07]} 34. Qh4 {[%clk
00:29:05]} {[%emt 00:00:11]} Rxe1 {[%clk 00:01:06]} {[%emt 00:00:47]} 35. Qxh5+
{[%clk 00:29:26]} {[%emt 00:00:08]} Kg7 {[%clk 00:01:26]} {[%emt 00:00:10]} 36.
Qg5+ {[%clk 00:29:44]} {[%emt 00:00:11]} Kh7 {[%clk 00:01:38]} {[%emt
00:00:17]} 37. Rxe1 {[%clk 00:30:02]} {[%emt 00:00:14]} Qd6 {[%clk 00:00:55]}
{[%emt 00:01:14]} 38. Re4 {[%clk 00:30:11]} {[%emt 00:00:19]} Qg6 {[%clk
00:01:02]} {[%emt 00:00:24]} 39. Rh4+ {[%clk 00:29:57]} {[%emt 00:00:43]} Kg7
{[%clk 00:01:23]} {[%emt 00:00:10]} 40. Qe5+ {[%clk 00:30:21]} {[%emt
00:00:06]} f6 {[%clk 00:01:29]} {[%emt 00:00:24]} 41. Qe7+ {[%clk 00:30:39]}
{[%emt 00:00:11]} Kg8 {[%clk 00:01:29]} {[%emt 00:00:29]} 42. Qd8+ {[%clk
00:30:40]} {[%emt 00:00:30]} Kf7 {[%clk 00:00:32]} {[%emt 00:01:27]} 43. Rh8
{[%clk 00:30:49]} {[%emt 00:00:20]} 1-0

[Event "XXII Rochefort Chess Masters"]
[Site "ROCHEFORT, France"]
[Date "2024.02.18"]
[Round "2.1"]
[White "Romanov, Evgeny"]
[Black "Pichon, Ewen"]
[Result "1-0"]
[TimeControl "1h30/40 - 30' + [30'']"]
[WhiteElo "2593"]
[BlackElo "2238"]

1. c4 {[%clk 01:18:56]} {[%emt 00:12:03]} Nf6 {[%clk 01:30:53]} {[%emt
00:00:07]} 2. Nc3 {[%clk 01:18:58]} {[%emt 00:00:28]} e6 {[%clk 01:31:19]}
{[%emt 00:00:05]} 3. e4 {[%clk 01:15:31]} {[%emt 00:03:56]} d5 {[%clk
01:30:10]} {[%emt 00:01:39]} 4. e5 {[%clk 01:15:51]} {[%emt 00:00:10]} d4
{[%clk 01:30:19]} {[%emt 00:00:21]} 5. exf6 {[%clk 01:15:51]} {[%emt 00:00:30]}
dxc3 {[%clk 01:30:45]} {[%emt 00:00:04]} 6. bxc3 {[%clk 01:16:12]} {[%emt
00:00:09]} Qxf6 {[%clk 01:31:09]} {[%emt 00:00:05]} 7. Nf3 {[%clk 01:16:33]}
{[%emt 00:00:09]} e5 {[%clk 01:30:39]} {[%emt 00:01:01]} 8. d4 {[%clk
01:13:58]} {[%emt 00:03:04]} exd4 {[%clk 01:31:04]} {[%emt 00:00:05]} 9. Bg5
{[%clk 01:12:50]} {[%emt 00:01:38]} Qe6+ {[%clk 01:31:02]} {[%emt 00:00:32]} 10.
Be2 {[%clk 01:13:03]} {[%emt 00:00:17]} Be7 {[%clk 01:23:52]} {[%emt 00:07:41]}
11. cxd4 {[%clk 01:00:41]} {[%emt 00:12:51]} Bxg5 {[%clk 01:19:46]} {[%emt
00:04:36]} 12. Nxg5 {[%clk 01:01:04]} {[%emt 00:00:07]} Qe7 {[%clk 01:20:05]}
{[%emt 00:00:11]} 13. Qd2 {[%clk 00:59:37]} {[%emt 00:01:56]} h6 {[%clk
01:19:49]} {[%emt 00:00:47]} 14. Nf3 {[%clk 00:59:49]} {[%emt 00:00:17]} O-O
{[%clk 01:16:31]} {[%emt 00:03:48]} 15. O-O {[%clk 00:58:47]} {[%emt 00:01:31]}
b6 {[%clk 01:00:14]} {[%emt 00:16:48]} 16. Rfe1 {[%clk 00:53:54]} {[%emt
00:05:23]} Bb7 {[%clk 00:57:58]} {[%emt 00:02:47]} 17. Qf4 {[%clk 00:53:41]}
{[%emt 00:00:42]} Qd6 {[%clk 00:57:24]} {[%emt 00:01:04]} 18. Qxd6 {[%clk
00:47:51]} {[%emt 00:06:20]} cxd6 {[%clk 00:57:50]} {[%emt 00:00:05]} 19. d5
{[%clk 00:46:59]} {[%emt 00:01:22]} Nd7 {[%clk 00:54:34]} {[%emt 00:03:46]} 20.
Nd4 {[%clk 00:46:56]} {[%emt 00:00:33]} Nf6 {[%clk 00:54:33]} {[%emt 00:00:31]}
21. a4 {[%clk 00:46:19]} {[%emt 00:01:07]} Bc8 {[%clk 00:49:27]} {[%emt
00:05:37]} 22. Nb5 {[%clk 00:38:04]} {[%emt 00:08:44]} Rd8 {[%clk 00:48:37]}
{[%emt 00:01:20]} 23. f3 {[%clk 00:38:09]} {[%emt 00:00:25]} a6 {[%clk
00:46:34]} {[%emt 00:02:33]} 24. Nd4 {[%clk 00:38:19]} {[%emt 00:00:19]} Bd7
{[%clk 00:46:59]} {[%emt 00:00:06]} 25. Reb1 {[%clk 00:36:58]} {[%emt
00:01:51]} Rdb8 {[%clk 00:47:13]} {[%emt 00:00:16]} 26. Rb2 {[%clk 00:31:30]}
{[%emt 00:05:57]} a5 {[%clk 00:43:35]} {[%emt 00:04:09]} 27. Nc6 {[%clk
00:27:13]} {[%emt 00:04:47]} Rb7 {[%clk 00:41:42]} {[%emt 00:02:24]} 28. Rab1
{[%clk 00:27:00]} {[%emt 00:00:42]} Bxc6 {[%clk 00:41:37]} {[%emt 00:00:35]} 29.
dxc6 {[%clk 00:27:27]} {[%emt 00:00:03]} Rc7 {[%clk 00:42:03]} {[%emt
00:00:05]} 30. Rxb6 {[%clk 00:27:41]} {[%emt 00:00:15]} Rac8 {[%clk 00:42:29]}
{[%emt 00:00:05]} 31. R1b5 {[%clk 00:24:24]} {[%emt 00:03:47]} Rxc6 {[%clk
00:41:46]} {[%emt 00:01:13]} 32. Rxc6 {[%clk 00:24:39]} {[%emt 00:00:15]} Rxc6
{[%clk 00:42:14]} {[%emt 00:00:02]} 33. Rxa5 {[%clk 00:25:00]} {[%emt
00:00:09]} Nd7 {[%clk 00:41:44]} {[%emt 00:01:00]} 34. Ra8+ {[%clk 00:23:59]}
{[%emt 00:01:31]} Kh7 {[%clk 00:42:09]} {[%emt 00:00:05]} 35. a5 {[%clk
00:15:51]} {[%emt 00:08:37]} Nc5 {[%clk 00:39:11]} {[%emt 00:03:28]} 36. Kf2
{[%clk 00:08:57]} {[%emt 00:07:24]} Kg6 {[%clk 00:37:23]} {[%emt 00:02:19]} 37.
Ke3 {[%clk 00:08:40]} {[%emt 00:00:46]} Kf6 {[%clk 00:37:21]} {[%emt 00:00:32]}
38. f4 {[%clk 00:08:17]} {[%emt 00:00:52]} Ne6 {[%clk 00:35:43]} {[%emt
00:02:08]} 39. g3 {[%clk 00:07:22]} {[%emt 00:01:25]} g5 {[%clk 00:34:42]}
{[%emt 00:01:31]} 40. fxg5+ {[%clk 00:04:36]} {[%emt 00:03:16]} hxg5 {[%clk
00:35:00]} {[%emt 00:00:11]} 41. Kd3 {[%clk 00:03:59]} {[%emt 00:01:06]} Ke5
{[%clk 00:31:17]} {[%emt 00:04:14]} 42. Bf3 {[%clk 00:03:39]} {[%emt 00:00:50]}
Rc5 {[%clk 00:31:33]} {[%emt 00:00:15]} 43. Bb7 {[%clk 00:30:01]} {[%emt
00:04:06]} f5 {[%clk 00:57:16]} {[%emt 00:04:47]} 44. a6 {[%clk 00:12:50]}
{[%emt 00:17:41]} Ra5 {[%clk 00:54:45]} {[%emt 00:03:01]} 45. a7 {[%clk
00:13:10]} {[%emt 00:00:10]} Nc7 {[%clk 00:35:14]} {[%emt 00:20:01]} 46. Rc8
{[%clk 00:13:24]} {[%emt 00:00:15]} Rxa7 {[%clk 00:35:42]} {[%emt 00:00:03]} 47.
Rxc7 {[%clk 00:13:45]} {[%emt 00:00:09]} Ra3+ {[%clk 00:36:09]} {[%emt
00:00:03]} 48. Kc2 {[%clk 00:13:36]} {[%emt 00:00:38]} Kd4 {[%clk 00:35:42]}
{[%emt 00:00:57]} 49. Rf7 {[%clk 00:09:58]} {[%emt 00:04:07]} Ra2+ {[%clk
00:35:11]} {[%emt 00:01:02]} 50. Kb3 {[%clk 00:09:58]} {[%emt 00:00:29]} Rf2
{[%clk 00:35:30]} {[%emt 00:00:11]} 51. h4 {[%clk 00:09:46]} {[%emt 00:00:42]}
gxh4 {[%clk 00:35:34]} {[%emt 00:00:27]} 52. gxh4 {[%clk 00:10:11]} {[%emt
00:00:05]} Ke5 {[%clk 00:35:59]} {[%emt 00:00:05]} 53. h5 {[%clk 00:08:56]}
{[%emt 00:01:44]} Rh2 {[%clk 00:36:26]} {[%emt 00:00:04]} 54. Rh7 {[%clk
00:09:11]} {[%emt 00:00:15]} f4 {[%clk 00:36:51]} {[%emt 00:00:05]} 55. h6
{[%clk 00:09:10]} {[%emt 00:00:30]} Kd4 {[%clk 00:36:08]} {[%emt 00:01:14]} 56.
Rf7 {[%clk 00:08:25]} {[%emt 00:01:13]} Rxh6 {[%clk 00:35:56]} {[%emt
00:00:43]} 57. Rxf4+ {[%clk 00:08:50]} {[%emt 00:00:05]} Kc5 {[%clk 00:36:22]}
{[%emt 00:00:04]} 58. Rf5+ {[%clk 00:09:13]} {[%emt 00:00:07]} Kb6 {[%clk
00:36:48]} {[%emt 00:00:05]} 59. Rb5+ {[%clk 00:09:35]} {[%emt 00:00:07]} Kc7
{[%clk 00:37:08]} {[%emt 00:00:11]} 60. Bd5 {[%clk 00:09:55]} {[%emt 00:00:09]}
1-0



[ePGN "0.1;DGT LiveChess/2.2.6"]